[Event "EYCC Open-U18 2019"]
[Site "Bratislava"]
[Date "2019.08.04"]
[Round "3.32"]
[White "Toquero Gracia, Pau"]
[Black "Halfhide, Sebastian"]
[Result "1/2-1/2"]
[ECO "B50"]
[WhiteElo "2080"]
[BlackElo "2286"]
[Annotator "NA"]
[PlyCount "69"]
[EventDate "2019.08.02"]
[EventType "swiss"]
[EventCountry "SVK"]
[SourceTitle "playchess.com"]
[Source "ChessBase"]
[SourceQuality "1"]
[TimeControl "40/5400+30:1800+30"]

1. e4 {[%emt 0:00:00]} c5 {[%emt 0:00:00]} 2. Nf3 {[%emt 0:00:00]} d6 {[%emt 0:00:00]} 3. c3 {[%emt 0:00:00]} Nf6 {[%emt 0:00:44]} 4. Be2 {[%emt 0:00:28]} Bd7 {[%emt 0:00:58]} 5. d3 {[%emt 0:02:26]} g6 {[%emt 0:02:08]} 6. Nbd2 {[%emt 0:00:58]} Bg7 {[%emt 0:01:34]} 7. O-O {[%emt 0:01:33]} O-O {[%emt 0:01:23]} 8. Qc2 {[%emt 0:00:07]} Nc6 {[%emt 0:04:43]} 9. b3 {[%emt 0:09:52]} Ne8 {[%emt 0:08:19]} 10. Bb2 {[%emt 0:01:23]} Nc7 {[%emt 0:03:44]} 11. d4 {[%emt 0:04:19]} cxd4 {[%emt 0:01:59]} 12. Nxd4 {[%emt 0:00:28]} d5 {[%emt 0:02:43]} 13. Nxc6 {[%emt 0:29:02]} Bxc6 {[%emt 0:05:28]} 14. exd5 {[%emt 0:07:06]} Nxd5 {[%emt 0:00:50]} 15. c4 {[%emt 0:02:29]} Nb4 {[%emt 0:07:01]} 16. Qc1 {[%emt 0:00:19]} Nd3 {[%emt 0:00:50]} 17. Bxd3 {[%emt 0:00:06]} Bxb2 {[%emt 0:00:50]} 18. Qxb2 {[%emt 0:01:08]} Qxd3 {[%emt 0:00:17]} 19. Rfd1 {[%emt 0:07:31]} Rfd8 {[%emt 0:06:45]} 20. Qb1 {[%emt 0:05:48]} Qc3 {[%emt 0:02:50]} 21. Nf1 {[%emt 0:04:56]} a5 {[%emt 0:11:16]} 22. Qc1 {[%emt 0:04:25]} Qb4 {[%emt 0:03:11]} 23. Qc2 {[%emt 0:11:56]} a4 {[%emt 0:05:51]} 24. Rxd8+ {[%emt 0:00:36]} Rxd8 {[%emt 0:00:02]} 25. Rd1 {[%emt 0:00:08]} Rd6 {[%emt 0:13:45]} 26. Rxd6 {[%emt 0:02:24]} Qxd6 {[%emt 0:00:16]} 27. Ne3 {[%emt 0:02:02]} Qd4 {[%emt 0:08:06]} 28. h3 {[%emt 0:01:53]} a3 {[%emt 0:02:40]} 29. Qd1 {[%emt 0:00:28]} Qb2 {[%emt 0:00:27]} 30. Qd8+ {[%emt 0:00:17]} Kg7 {[%emt 0:00:10]} 31. Qxe7 {[%emt 0:00:31]} Qxa2 {[%emt 0:01:55]} 32. Qe5+ {[%emt 0:00:11]} Kf8 {[%emt 0:02:14]} 33. Qh8+ {[%emt 0:00:47]} Ke7 {[%emt 0:00:11]} 34. Qe5+ {[%emt 0:00:02]} Kd7 {[%emt 0:02:31]} 35. Nd5 {[%emt 0:00:14]} 1/2-1/2

[Event "EYCC Open-U18 2019"]
[Site "Bratislava"]
[Date "2019.08.04"]
[Round "3.33"]
[White "Rodriguez Izquierdo, Luis"]
[Black "Crevatin, Leo"]
[Result "0-1"]
[ECO "B12"]
[WhiteElo "2007"]
[BlackElo "2146"]
[Annotator "NA"]
[PlyCount "78"]
[EventDate "2019.08.02"]
[EventType "swiss"]
[EventCountry "SVK"]
[SourceTitle "playchess.com"]
[Source "ChessBase"]
[SourceQuality "1"]
[TimeControl "40/5400+30:1800+30"]

1. e4 {[%emt 0:00:00]} c6 {[%emt 0:00:00]} 2. d4 {[%emt 0:00:00]} d5 {[%emt 0:00:00]} 3. e5 {[%emt 0:00:00]} c5 {[%emt 0:00:00]} 4. dxc5 {[%emt 0:00:38]} e6 {[%emt 0:00:00]} 5. a3 {[%emt 0:01:29]} Bxc5 {[%emt 0:00:00]} 6. b4 {[%emt 0:00:28]} Bb6 {[%emt 0:00:00]} 7. Nf3 {[%emt 0:01:11]} Ne7 {[%emt 0:00:00]} 8. Bd3 {[%emt 0:00:33]} a5 {[%emt 0:01:45]} 9. b5 {[%emt 0:05:40]} Ng6 {[%emt 0:02:12]} 10. Bb2 {[%emt 0:01:26]} Nd7 {[%emt 0:02:24]} 11. O-O {[%emt 0:01:20]} O-O {[%emt 0:03:40]} 12. Re1 {[%emt 0:01:28]} Nc5 {[%emt 0:03:32]} 13. g3 {[%emt 0:05:10]} Na4 {[%emt 0:06:04]} 14. Bd4 {[%emt 0:11:07]} Bxd4 {[%emt 0:06:17]} 15. Nxd4 {[%emt 0:00:57]} Nb2 {[%emt 0:01:12]} 16. Qd2 {[%emt 0:07:11]} Nxd3 {[%emt 0:00:16]} 17. Qxd3 {[%emt 0:00:43]} f6 {[%emt 0:03:08]} 18. f4 {[%emt 0:04:34]} fxe5 {[%emt 0:01:36]} 19. fxe5 {[%emt 0:01:09]} Qg5 {[%emt 0:05:42]} 20. Qe3 {[%emt 0:06:18]} Qg4 {[%emt 0:07:19]} 21. Nd2 {[%emt 0:04:31]} Bd7 {[%emt 0:01:42]} 22. Rf1 {[%emt 0:05:30]} h5 {[%emt 0:04:15]} 23. c4 {[%emt 0:06:17]} dxc4 {[%emt 0:06:07]} 24. a4 {[%emt 0:02:42]} Rxf1+ {[%emt 0:06:20]} 25. Rxf1 {[%emt 0:00:13]} Rc8 {[%emt 0:05:22]} 26. Ne4 {[%emt 0:00:59]} h4 {[%emt 0:04:07]} 27. Nd6 {[%emt 0:06:28]} Rc5 {[%emt 0:03:53]} 28. Nxb7 {[%emt 0:06:53]} Rxe5 {[%emt 0:02:17]} 29. Qf2 {[%emt 0:00:06]} Rd5 {[%emt 0:02:07]} 30. Nc6 {[%emt 0:05:22]} Rf5 {[%emt 0:03:53]} 31. Qe1 {[%emt 0:00:44]} Rxf1+ {[%emt 0:03:55]} 32. Qxf1 {[%emt 0:00:04]} hxg3 {[%emt 0:03:40]} 33. Nbxa5 {[%emt 0:02:59]} Nh4 {[%emt 0:01:31]} 34. h3 {[%emt 0:00:42]} Qg5 {[%emt 0:01:27]} 35. Qd1 {[%emt 0:02:53]} Qe3+ {[%emt 0:00:37]} 36. Kh1 {[%emt 0:00:14]} Qf2 {[%emt 0:02:06]} 37. Ne7+ {[%emt 0:00:09]} Kf8 {[%emt 0:00:44]} 38. Ng6+ {[%emt 0:00:15]} Nxg6 {[%emt 0:00:36]} 39. Qg1 {[%emt 0:00:07]} Nh4 {[%emt 0:00:28]} 0-1

[Event "EYCC Open-U18 2019"]
[Site "Bratislava"]
[Date "2019.08.04"]
[Round "3.34"]
[White "Boev, Viktor"]
[Black "Kaspar, Lukas"]
[Result "1/2-1/2"]
[ECO "B08"]
[WhiteElo "2246"]
[BlackElo "1886"]
[Annotator "NA"]
[PlyCount "85"]
[EventDate "2019.08.02"]
[EventType "swiss"]
[EventCountry "SVK"]
[SourceTitle "playchess.com"]
[Source "ChessBase"]
[SourceQuality "1"]
[TimeControl "40/5400+30:1800+30"]

1. e4 {[%emt 0:00:00]} g6 {[%emt 0:00:00]} 2. d4 {[%emt 0:00:00]} Bg7 {[%emt 0:00:00]} 3. Nf3 {[%emt 0:00:04]} d6 {[%emt 0:00:29]} 4. Nc3 {[%emt 0:01:37]} Nf6 {[%emt 0:02:02]} 5. Be3 {[%emt 0:00:50]} O-O {[%emt 0:03:41]} 6. Qd2 {[%emt 0:00:27]} Nc6 {[%emt 0:02:19]} 7. O-O-O {[%emt 0:06:07]} Nd7 {[%emt 0:12:45]} 8. g4 {[%emt 0:16:21]} e5 {[%emt 0:08:42]} 9. d5 {[%emt 0:03:35]} Ne7 {[%emt 0:00:58]} 10. Bh6 {[%emt 0:07:37]} Nc5 {[%emt 0:06:17]} 11. Rg1 {[%emt 0:01:22]} Bd7 {[%emt 0:03:47]} 12. Rg3 {[%emt 0:10:39]} f6 {[%emt 0:04:54]} 13. Ne1 {[%emt 0:08:11]} g5 {[%emt 0:05:58]} 14. Bxg7 {[%emt 0:00:28]} Kxg7 {[%emt 0:00:02]} 15. Nd3 {[%emt 0:05:00]} Nxd3+ {[%emt 0:06:50]} 16. Qxd3 {[%emt 0:03:07]} Ng6 {[%emt 0:02:47]} 17. h3 {[%emt 0:00:24]} Nf4 {[%emt 0:01:07]} 18. Qc4 {[%emt 0:00:09]} a6 {[%emt 0:02:13]} 19. Qb3 {[%emt 0:02:05]} Qb8 {[%emt 0:02:02]} 20. Ne2 {[%emt 0:01:54]} Nxe2+ {[%emt 0:03:31]} 21. Bxe2 {[%emt 0:00:07]} Qa7 {[%emt 0:00:24]} 22. Qe3 {[%emt 0:08:21]} Qxe3+ {[%emt 0:03:29]} 23. Rxe3 {[%emt 0:00:06]} Rh8 {[%emt 0:01:56]} 24. Rc3 {[%emt 0:02:57]} Rhc8 {[%emt 0:02:28]} 25. b3 {[%emt 0:02:15]} b6 {[%emt 0:03:30]} 26. a4 {[%emt 0:00:22]} Kf7 {[%emt 0:03:19]} 27. Kb2 {[%emt 0:00:48]} Ke7 {[%emt 0:00:47]} 28. Rh1 {[%emt 0:04:29]} Be8 {[%emt 0:01:56]} 29. h4 {[%emt 0:02:22]} Bg6 {[%emt 0:00:16]} 30. f3 {[%emt 0:00:21]} Kd7 {[%emt 0:01:22]} 31. h5 {[%emt 0:01:35]} Bf7 {[%emt 0:01:05]} 32. a5 {[%emt 0:00:14]} b5 {[%emt 0:03:10]} 33. Rc6 {[%emt 0:03:51]} Kd8 {[%emt 0:01:00]} 34. b4 {[%emt 0:01:09]} Be8 {[%emt 0:01:50]} 35. Rc3 {[%emt 0:00:07]} Rcb8 {[%emt 0:00:17]} 36. Ka3 {[%emt 0:01:18]} Ra7 {[%emt 0:03:24]} 37. Rd1 {[%emt 0:01:00]} Rab7 {[%emt 0:01:47]} 38. Rb3 {[%emt 0:00:14]} Ra7 {[%emt 0:01:57]} 39. c4 {[%emt 0:00:25]} Kc8 {[%emt 0:01:43]} 40. Rc1 {[%emt 0:00:00]} Kd8 {[%emt 0:00:00]} 41. Rbc3 {[%emt 0:02:59]} Kc8 {[%emt 0:01:42]} 42. h6 {[%emt 0:12:29]} Kd8 {[%emt 0:04:10]} 43. cxb5 {[%emt 0:00:50]} 1/2-1/2

[Event "EYCC Open-U18 2019"]
[Site "Bratislava"]
[Date "2019.08.04"]
[Round "3.35"]
[White "Baranciuc, Alexandr"]
[Black "Castillo Dalmau, Albert"]
[Result "1-0"]
[ECO "B23"]
[WhiteElo "1901"]
[BlackElo "2252"]
[Annotator "NA"]
[PlyCount "129"]
[EventDate "2019.08.02"]
[EventType "swiss"]
[EventCountry "SVK"]
[SourceTitle "playchess.com"]
[Source "ChessBase"]
[SourceQuality "1"]
[TimeControl "40/5400+30:1800+30"]

1. e4 {[%emt 0:00:00]} c5 {[%emt 0:00:00]} 2. Nc3 {[%emt 0:00:00]} e6 {[%emt 0:00:02]} 3. g3 {[%emt 0:01:00]} d5 {[%emt 0:05:56]} 4. exd5 {[%emt 0:00:40]} exd5 {[%emt 0:00:02]} 5. d4 {[%emt 0:00:12]} cxd4 {[%emt 0:01:44]} 6. Qxd4 {[%emt 0:00:15]} Nf6 {[%emt 0:00:10]} 7. Bg5 {[%emt 0:05:06]} Be7 {[%emt 0:00:23]} 8. O-O-O {[%emt 0:03:50]} Nc6 {[%emt 0:00:27]} 9. Qa4 {[%emt 0:03:00]} Be6 {[%emt 0:09:59]} 10. Bg2 {[%emt 0:05:48]} O-O {[%emt 0:01:19]} 11. Nge2 {[%emt 0:13:23]} Qb6 {[%emt 0:03:05]} 12. Be3 {[%emt 0:14:12]} Bc5 {[%emt 0:02:55]} 13. Bxc5 {[%emt 0:00:38]} Qxc5 {[%emt 0:00:02]} 14. Nd4 {[%emt 0:05:58]} a6 {[%emt 0:04:03]} 15. Nce2 {[%emt 0:02:58]} b5 {[%emt 0:08:56]} 16. Qb3 {[%emt 0:00:13]} Na5 {[%emt 0:01:17]} 17. Qc3 {[%emt 0:00:29]} Nc4 {[%emt 0:07:06]} 18. b3 {[%emt 0:03:34]} Qa3+ {[%emt 0:12:59]} 19. Kb1 {[%emt 0:00:39]} b4 {[%emt 0:01:03]} 20. Qa1 {[%emt 0:00:39]} Nb6 {[%emt 0:07:32]} 21. h4 {[%emt 0:05:14]} Qa5 {[%emt 0:09:43]} 22. h5 {[%emt 0:00:26]} h6 {[%emt 0:00:19]} 23. f3 {[%emt 0:01:24]} Qc5 {[%emt 0:00:42]} 24. g4 {[%emt 0:01:52]} Nh7 {[%emt 0:01:03]} 25. Ng3 {[%emt 0:03:40]} Rac8 {[%emt 0:03:50]} 26. Bf1 {[%emt 0:02:42]} a5 {[%emt 0:00:18]} 27. Bd3 {[%emt 0:00:52]} Qc3 {[%emt 0:02:31]} 28. Ngf5 {[%emt 0:02:03]} Qxa1+ {[%emt 0:02:39]} 29. Kxa1 {[%emt 0:00:49]} Rc7 {[%emt 0:00:09]} 30. f4 a4 {[%emt 0:01:18]} 31. Rdg1 {[%emt 0:04:36]} Bxf5 {[%emt 0:01:27]} 32. Nxf5 {[%emt 0:01:03]} f6 {[%emt 0:00:19]} 33. Re1 {[%emt 0:00:49]} Rb8 {[%emt 0:00:55]} 34. Re3 {[%emt 0:02:29]} axb3 {[%emt 0:01:18]} 35. cxb3 {[%emt 0:00:07]} Nf8 {[%emt 0:03:01]} 36. Rhe1 {[%emt 0:00:57]} Ra7 {[%emt 0:05:24]} 37. Ne7+ {[%emt 0:02:24]} Kf7 {[%emt 0:00:05]} 38. Nc6 {[%emt 0:00:07]} Rba8 {[%emt 0:00:02]} 39. Nxa7 {[%emt 0:00:24]} Rxa7 {[%emt 0:00:01]} 40. g5 {[%emt 0:00:00]} hxg5 {[%emt 0:00:00]} 41. fxg5 {[%emt 0:01:12]} fxg5 {[%emt 0:00:19]} 42. Rf1+ {[%emt 0:00:08]} Kg8 {[%emt 0:00:07]} 43. Re8 {[%emt 0:00:31]} Nbd7 {[%emt 0:00:13]} 44. Bf5 {[%emt 0:01:13]} Nf6 {[%emt 0:00:13]} 45. Rb8 {[%emt 0:00:25]} Re7 {[%emt 0:00:10]} 46. Bg6 {[%emt 0:02:00]} g4 {[%emt 0:00:41]} 47. Rxb4 {[%emt 0:01:00]} g3 {[%emt 0:00:03]} 48. Rg1 {[%emt 0:00:17]} Re3 {[%emt 0:00:08]} 49. a4 {[%emt 0:00:25]} N6d7 {[%emt 0:02:12]} 50. Rb5 {[%emt 0:04:12]} Ne6 {[%emt 0:01:44]} 51. Rxd5 {[%emt 0:14:47]} Ndc5 {[%emt 0:01:19]} 52. Bc2 {[%emt 0:07:39]} Na6 {[%emt 0:06:37]} 53. Rd3 {[%emt 0:01:10]} Re5 {[%emt 0:01:31]} 54. Bd1 {[%emt 0:00:37]} Kf7 {[%emt 0:00:47]} 55. Rdxg3 {[%emt 0:00:34]} Nb4 {[%emt 0:00:25]} 56. Kb2 {[%emt 0:00:54]} Rd5 {[%emt 0:00:20]} 57. Ka3 {[%emt 0:01:41]} Nc6 {[%emt 0:00:01]} 58. Bf3 {[%emt 0:01:27]} Rc5 {[%emt 0:00:03]} 59. Bxc6 {[%emt 0:00:10]} Rxc6 {[%emt 0:00:01]} 60. Rf1+ {[%emt 0:00:18]} Ke7 {[%emt 0:00:22]} 61. Re3 {[%emt 0:00:37]} Kd7 {[%emt 0:00:14]} 62. Rf7+ {[%emt 0:00:21]} Kd6 {[%emt 0:00:03]} 63. h6 {[%emt 0:00:50]} gxh6 {[%emt 0:00:06]} 64. Rf6 {[%emt 0:00:01]} Kd5 {[%emt 0:00:14]} 65. Rxh6 {[%emt 0:00:06]} 1-0

[Event "EYCC Open-U18 2019"]
[Site "Bratislava"]
[Date "2019.08.04"]
[Round "3.36"]
[White "Eftovski Mateo"]
[Black "Godzwon, Iwo"]
[Result "0-1"]
[ECO "E32"]
[WhiteElo "1726"]
[BlackElo "2285"]
[Annotator "NA"]
[PlyCount "100"]
[EventDate "2019.08.02"]
[EventType "swiss"]
[EventCountry "SVK"]
[SourceTitle "playchess.com"]
[Source "ChessBase"]
[SourceQuality "1"]
[TimeControl "40/5400+30:1800+30"]

1. d4 {[%emt 0:00:00]} Nf6 {[%emt 0:00:00]} 2. c4 {[%emt 0:00:00]} e6 {[%emt 0:00:00]} 3. Nc3 {[%emt 0:00:00]} Bb4 {[%emt 0:00:00]} 4. Qc2 {[%emt 0:00:00]} O-O {[%emt 0:00:00]} 5. Nf3 {[%emt 0:00:25]} b6 {[%emt 0:00:01]} 6. Bg5 {[%emt 0:02:19]} Bb7 {[%emt 0:00:11]} 7. e3 {[%emt 0:01:11]} h6 {[%emt 0:00:53]} 8. Bh4 {[%emt 0:00:24]} d6 {[%emt 0:12:16]} 9. Be2 {[%emt 0:07:00]} g5 {[%emt 0:04:20]} 10. Bg3 {[%emt 0:01:21]} Ne4 {[%emt 0:00:11]} 11. O-O {[%emt 0:13:01]} Bxc3 {[%emt 0:01:06]} 12. bxc3 {[%emt 0:00:02]} f5 {[%emt 0:03:14]} 13. Nd2 {[%emt 0:02:25]} Nd7 {[%emt 0:05:53]} 14. Rad1 {[%emt 0:15:14]} Qf6 {[%emt 0:03:54]} 15. f3 {[%emt 0:03:04]} Nxg3 {[%emt 0:05:13]} 16. hxg3 {[%emt 0:00:05]} e5 {[%emt 0:01:37]} 17. Qa4 {[%emt 0:14:15]} Qe7 {[%emt 0:04:33]} 18. e4 {[%emt 0:11:44]} Nf6 {[%emt 0:03:35]} 19. exf5 {[%emt 0:05:00]} exd4 {[%emt 0:00:05]} 20. cxd4 {[%emt 0:00:06]} Nh5 {[%emt 0:07:20]} 21. Ne4 {[%emt 0:11:04]} Bxe4 {[%emt 0:05:42]} 22. fxe4 {[%emt 0:00:04]} Nxg3 {[%emt 0:00:02]} 23. Qc2 {[%emt 0:01:38]} Nxf1 {[%emt 0:00:31]} 24. Rxf1 {[%emt 0:00:15]} Rae8 {[%emt 0:00:14]} 25. Bd3 {[%emt 0:00:48]} Qf6 {[%emt 0:04:07]} 26. Qf2 {[%emt 0:01:13]} c5 {[%emt 0:00:09]} 27. dxc5 {[%emt 0:00:17]} bxc5 {[%emt 0:04:37]} 28. Qf3 {[%emt 0:00:33]} Rb8 {[%emt 0:00:41]} 29. e5 {[%emt 0:05:41]} dxe5 {[%emt 0:00:56]} 30. Be4 {[%emt 0:00:19]} Kg7 {[%emt 0:11:49]} 31. Qa3 {[%emt 0:03:02]} Rf7 {[%emt 0:03:35]} 32. Qf3 {[%emt 0:02:09]} Rd7 {[%emt 0:04:55]} 33. Bd5 {[%emt 0:00:17]} Re7 {[%emt 0:01:26]} 34. Kh1 {[%emt 0:00:25]} h5 {[%emt 0:00:17]} 35. Rd1 {[%emt 0:00:24]} g4 {[%emt 0:00:15]} 36. Qe4 {[%emt 0:00:33]} Rd7 {[%emt 0:03:39]} 37. Rd2 {[%emt 0:00:41]} Rf8 {[%emt 0:00:53]} 38. Rf2 {[%emt 0:00:17]} Rd6 {[%emt 0:00:45]} 39. Rb2 {[%emt 0:01:13]} Qxf5 {[%emt 0:00:59]} 40. Rb7+ {[%emt 0:00:00]} Kg6 {[%emt 0:00:00]} 41. Rxa7 {[%emt 0:03:43]} Qxe4 {[%emt 0:01:19]} 42. Bxe4+ {[%emt 0:00:04]} Kg5 {[%emt 0:00:02]} 43. g3 {[%emt 0:00:19]} Rd4 {[%emt 0:02:11]} 44. Bd5 {[%emt 0:02:07]} Rf2 {[%emt 0:00:18]} 45. Kg1 {[%emt 0:00:46]} Rb2 {[%emt 0:00:06]} 46. Bg2 {[%emt 0:00:37]} Rd1+ {[%emt 0:00:46]} 47. Bf1 {[%emt 0:00:03]} e4 {[%emt 0:00:05]} 48. Ra5 {[%emt 0:00:54]} e3 {[%emt 0:00:08]} 49. Rxc5+ {[%emt 0:00:02]} Kf6 {[%emt 0:00:04]} 50. Rc6+ {[%emt 0:00:11]} Ke5 0-1

[Event "EYCC Open-U18 2019"]
[Site "Bratislava"]
[Date "2019.08.04"]
[Round "3.38"]
[White "Miesbauer, Jan"]
[Black "Easwaralingam, Adesh"]
[Result "1-0"]
[ECO "E06"]
[WhiteElo "2409"]
[BlackElo "2113"]
[Annotator "NA"]
[PlyCount "91"]
[EventDate "2019.08.02"]
[EventType "swiss"]
[EventCountry "SVK"]
[SourceTitle "playchess.com"]
[Source "ChessBase"]
[SourceQuality "1"]
[TimeControl "40/5400+30:1800+30"]

1. d4 {[%emt 0:00:00]} Nf6 {[%emt 0:00:00]} 2. c4 {[%emt 0:00:00]} e6 {[%emt 0:00:00]} 3. g3 {[%emt 0:00:00]} d5 {[%emt 0:00:03]} 4. Nf3 {[%emt 0:00:07]} Be7 {[%emt 0:00:13]} 5. Bg2 {[%emt 0:00:06]} O-O {[%emt 0:00:05]} 6. O-O {[%emt 0:00:07]} dxc4 {[%emt 0:00:02]} 7. Qc2 {[%emt 0:00:42]} a6 {[%emt 0:00:06]} 8. a4 {[%emt 0:00:32]} Bd7 {[%emt 0:00:36]} 9. Qxc4 {[%emt 0:00:12]} Bc6 {[%emt 0:00:46]} 10. Bf4 {[%emt 0:00:39]} a5 {[%emt 0:01:40]} 11. Nc3 {[%emt 0:00:42]} Na6 {[%emt 0:00:12]} 12. Rac1 {[%emt 0:01:23]} Nb4 {[%emt 0:02:37]} 13. Rfd1 {[%emt 0:02:07]} Bd6 {[%emt 0:06:50]} 14. Ne5 {[%emt 0:16:00]} Bxg2 {[%emt 0:04:39]} 15. Kxg2 {[%emt 0:00:05]} Nbd5 {[%emt 0:06:51]} 16. Bg5 {[%emt 0:03:28]} Nb6 {[%emt 0:23:49]} 17. Qb3 {[%emt 0:00:41]} Bb4 {[%emt 0:01:31]} 18. f3 {[%emt 0:06:10]} h6 {[%emt 0:05:33]} 19. Be3 {[%emt 0:02:34]} Qe7 {[%emt 0:12:18]} 20. Bf2 {[%emt 0:01:19]} Rfd8 {[%emt 0:02:58]} 21. e4 {[%emt 0:00:42]} Nbd7 {[%emt 0:10:17]} 22. Nd3 {[%emt 0:01:13]} c6 {[%emt 0:02:08]} 23. Na2 {[%emt 0:01:40]} e5 {[%emt 0:01:35]} 24. Naxb4 {[%emt 0:00:58]} axb4 {[%emt 0:00:09]} 25. dxe5 {[%emt 0:01:33]} Nxe5 {[%emt 0:00:36]} 26. Nxe5 {[%emt 0:00:43]} Qxe5 {[%emt 0:03:16]} 27. Qxb4 {[%emt 0:00:06]} Rxd1 {[%emt 0:03:57]} 28. Rxd1 {[%emt 0:00:06]} b5 {[%emt 0:00:25]} 29. a5 {[%emt 0:02:25]} Qe6 {[%emt 0:02:41]} 30. b3 {[%emt 0:02:06]} Nd7 {[%emt 0:01:39]} 31. Qd6 {[%emt 0:01:48]} Nf8 {[%emt 0:01:43]} 32. Qxe6 {[%emt 0:00:14]} Nxe6 {[%emt 0:00:06]} 33. Bb6 {[%emt 0:00:06]} Kf8 {[%emt 0:01:56]} 34. f4 {[%emt 0:01:33]} Ke8 {[%emt 0:00:55]} 35. f5 {[%emt 0:00:26]} Nf8 {[%emt 0:00:07]} 36. Rd6 {[%emt 0:01:48]} Rc8 {[%emt 0:00:22]} 37. a6 {[%emt 0:03:10]} Nd7 {[%emt 0:00:06]} 38. Be3 {[%emt 0:00:09]} Ke7 {[%emt 0:00:44]} 39. Rd2 {[%emt 0:00:54]} Kd8 {[%emt 0:01:14]} 40. a7 {[%emt 0:00:00]} Ke7 {[%emt 0:00:00]} 41. b4 {[%emt 0:04:34]} Ne5 {[%emt 0:05:09]} 42. Bc5+ {[%emt 0:00:28]} Ke8 {[%emt 0:00:21]} 43. Bd6 {[%emt 0:00:21]} Nc4 {[%emt 0:00:14]} 44. Bb8 {[%emt 0:02:57]} Nb6 {[%emt 0:01:25]} 45. Kf3 {[%emt 0:01:45]} Rd8 {[%emt 0:01:14]} 46. Bc7 {[%emt 0:00:27]} 1-0

[Event "EYCC Open-U18 2019"]
[Site "Bratislava"]
[Date "2019.08.04"]
[Round "3.39"]
[White "Parkhov, Yair"]
[Black "Bulockin, Martin"]
[Result "1-0"]
[ECO "A05"]
[WhiteElo "2354"]
[BlackElo "2210"]
[Annotator "NA"]
[PlyCount "77"]
[EventDate "2019.08.02"]
[EventType "swiss"]
[EventCountry "SVK"]
[SourceTitle "playchess.com"]
[Source "ChessBase"]
[SourceQuality "1"]
[TimeControl "40/5400+30:1800+30"]

1. Nf3 {[%emt 0:00:00]} Nf6 {[%emt 0:00:44]} 2. c4 {[%emt 0:00:00]} e6 {[%emt 0:01:09]} 3. g3 {[%emt 0:00:20]} c5 {[%emt 0:02:23]} 4. Bg2 {[%emt 0:03:49]} Nc6 {[%emt 0:00:53]} 5. O-O {[%emt 0:00:23]} Be7 {[%emt 0:01:18]} 6. d4 {[%emt 0:02:03]} cxd4 {[%emt 0:02:56]} 7. Nxd4 {[%emt 0:00:07]} O-O {[%emt 0:01:34]} 8. Nc3 {[%emt 0:00:25]} a6 {[%emt 0:03:00]} 9. b3 {[%emt 0:05:45]} Rb8 {[%emt 0:05:16]} 10. Bf4 {[%emt 0:13:08]} Ra8 {[%emt 0:00:22]} 11. Rc1 {[%emt 0:04:08]} h6 {[%emt 0:08:29]} 12. Na4 {[%emt 0:11:26]} Nxd4 {[%emt 0:12:03]} 13. Qxd4 {[%emt 0:02:20]} d6 {[%emt 0:00:19]} 14. Qd2 {[%emt 0:00:35]} Rb8 {[%emt 0:08:49]} 15. Rfd1 {[%emt 0:04:06]} b5 {[%emt 0:06:25]} 16. c5 {[%emt 0:10:06]} e5 {[%emt 0:01:18]} 17. cxd6 {[%emt 0:02:09]} exf4 {[%emt 0:02:55]} 18. Qxf4 {[%emt 0:09:03]} Bg4 {[%emt 0:05:31]} 19. Nc5 {[%emt 0:07:45]} Rb6 {[%emt 0:04:53]} 20. dxe7 {[%emt 0:01:16]} Qxe7 {[%emt 0:00:01]} 21. Re1 {[%emt 0:03:50]} b4 {[%emt 0:02:54]} 22. e4 {[%emt 0:00:36]} Bc8 {[%emt 0:03:27]} 23. e5 {[%emt 0:02:35]} Nd7 {[%emt 0:01:21]} 24. Nxd7 {[%emt 0:01:17]} Bxd7 {[%emt 0:00:38]} 25. Qd4 {[%emt 0:01:20]} Qe6 {[%emt 0:02:13]} 26. Bd5 {[%emt 0:01:24]} Qg6 {[%emt 0:00:30]} 27. Be4 {[%emt 0:02:18]} Qe6 {[%emt 0:00:01]} 28. Rc7 {[%emt 0:00:33]} Bb5 {[%emt 0:01:22]} 29. Bd5 {[%emt 0:00:50]} Rd6 {[%emt 0:01:06]} 30. Rd1 {[%emt 0:01:33]} Rxd5 {[%emt 0:00:41]} 31. Qxd5 {[%emt 0:00:02]} Qf5 {[%emt 0:00:38]} 32. e6 {[%emt 0:02:17]} fxe6 {[%emt 0:01:28]} 33. Qxf5 exf5 {[%emt 0:00:01]} 34. Rdc1 {[%emt 0:01:25]} Rf6 {[%emt 0:01:12]} 35. h4 {[%emt 0:01:19]} f4 {[%emt 0:02:23]} 36. Ra7 {[%emt 0:02:21]} Rg6 {[%emt 0:01:57]} 37. Rc8+ {[%emt 0:02:02]} Kh7 {[%emt 0:00:33]} 38. Raa8 {[%emt 0:00:18]} Rd6 {[%emt 0:00:48]} 39. h5 {[%emt 0:00:17]} 1-0